Cogmind - Beta 14 @@@ ROGUE MODE // 2025.03.02 @ 16:11:30 Player: osman sinnoks Result: Self-destructed Performance ------------- Evolutions (2) 1000 Regions Visited (7) 1400 Robots Destroyed (60) 300 Value Destroyed (1122) 1122 Prototype IDs (5) 100 Alien Tech Used (0) 0 Bonus (311) 311 TOTAL SCORE: 4233 Bonus ------- High Alert Combat Kills 11 Aligned with FarCom 300 Cogmind --------- Core Integrity 462/550 Matter 273/300 Energy 13/100 System Corruption 0% Temperature Cool (18) Movement Walking (123) Location -8/Materials Parts ------- > --- POWER (1) -------- (None) > --- PROPULSION (3) --- Improved Aluminum Leg Carbon-fiber Leg Titanium Leg > --- UTILITY (4) ------ Cooling System Cooling System Modified TNC Hardened Light Armor Plating > --- WEAPON (3) ------- Advanced Beam Cannon Heavy Particle Cannon > --- INVENTORY (5) ---- Improved Ion Engine Aluminum Leg Cooling System Targeting Computer Peak State ------------ > --- POWER ------------ Heavy Ion Engine > --- PROPULSION ------- Improved Aluminum Leg Carbon-fiber Leg Titanium Leg > --- UTILITY ---------- Cooling System Cooling System Modified TNC Hardened Light Armor Plating > --- WEAPON ----------- Improved Medium Laser Heavy Laser Advanced Beam Cannon > --- INVENTORY -------- Improved Ion Engine Aluminum Leg Cooling System Targeting Computer [Rating: 33] Favorites ----------- Power Improved Ion Engine Engine Improved Ion Engine Propulsion Aluminum Leg Leg Aluminum Leg Flight Unit Flight Unit Utility Cooling System Device Cooling System Processor Modified TNC Protection Hardened Light Armor Plating Weapon Improved Medium Laser Energy Gun Improved Medium Laser Energy Cannon Particle Cannon Ballistic Gun Light Assault Rifle Build | -11 -10 -10 -9 -9 -9 -8 -8 ------- Run | Yrd Mat Min Mat Min Exi Min Mat Slots Evolved 4 | . . . 2 . . . 2 Power . | . . . . . . . . Propulsion 1 | . . . 1 . . . . Utility 2 | . . . . . . . 2 Weapon 1 | . . . 1 . . . . Parts Attached 48 | 6 3 6 20 . 2 4 7 Power 6 | 1 1 1 2 . . . 1 Engine 6 | 1 1 1 2 . . . 1 Core . | . . . . . . . . Reactor . | . . . . . . . . Propulsion 15 | 2 2 3 5 . . 2 1 Treads . | . . . . . . . . Leg 9 | 2 . . 4 . . 2 1 Wheel . | . . . . . . . . Hover . | . . . . . . . . Flight 6 | . 2 3 1 . . . . Utility 8 | 1 . . 4 . 1 . 2 Device 6 | 1 . . 4 . . . 1 Storage . | . . . . . . . . Processor 1 | . . . . . 1 . . Hackware . | . . . . . . . . Protection 1 | . . . . . . . 1 Artifact . | . . . . . . . . Weapon 19 | 2 . 2 9 . 1 2 3 Energy Gun 10 | . . . 7 . 1 2 . Energy Cannon 4 | . . . 1 . . . 3 Ballistic Gun 5 | 2 . 2 1 . . . . Ballistic Cannon . | . . . . . . . . Launcher . | . . . . . . . . Special Weapon . | . . . . . . . . Impact Weapon . | . . . . . . . . Slashing Weapon . | . . . . . . . . Piercing Weapon . | . . . . . . . . Special Melee Weapon . | . . . . . . . . Unidentified Prototypes 5 | . . . 2 . 1 . 2 Parts Lost 12 | . 1 5 2 . . 1 3 Power 3 | . 1 1 . . . . 1 Propulsion 5 | . . 2 2 . . 1 . Utility 1 | . . 1 . . . . . Weapon 3 | . . 1 . . . . 2 Highest Loss Streak 6 | . 1 5 6 . . 1 3 To Critical Strikes . | . . . . . . . . Average Slot Usage (%) 90 | . 84 68 84 100 100 91 96 Engine 10 | . 13 11 11 11 11 11 8 Leg 22 | . 21 . 15 33 33 24 27 Flight 3 | . 6 21 8 . . . . Device 14 | . 14 8 17 22 15 11 17 Processor 5 | . . . . . 6 11 9 Energy Gun 18 | . . . 19 22 22 22 16 Energy Cannon 8 | . . . 8 11 11 11 9 Ballistic Gun 4 | . 28 26 5 . . . . Peak Build Rating 33 | 6 6 6 18 18 22 26 33 Average Rating 17 | 3 5 4 13 18 20 21 31 On Entrance 12 | . 6 6 5 18 18 22 26 Naked Turns . | . . . . . . . . Heaviest Build 30 | 6 6 6 21 21 21 20 30 Greatest Support 45 | 20 20 8 30 30 30 42 45 Greatest Overweight (x) 2 | . . . 2 . . . . Average Overweight (x) . | . . . . . . . . Largest Inventory Capacity 5 | 5 5 5 5 5 5 5 5 Average Capacity 5 | 5 5 5 5 5 5 5 5 Most Carried 5 | 3 2 5 5 5 5 5 5 Average Carried 4 | . 1 3 4 5 4 4 4 Final Capacity 5 | 5 5 5 5 5 5 5 5 Final Carried 5 | 1 2 5 5 5 5 5 4 Class Distribution -------------------- 41% | Skirmisher 20% | Gunner 15% | Scavenger-Gunner 10% | Mutant 10% | Scavenger-Skirmisher Dominant Class ---------------- Mutant | -10/Materials Scavenger-Mutant | -10/Mines Scavenger-Gunner | -9/Materials Gunner | -9/Mines Skirmisher | -9/Exiles Skirmisher | -8/Mines Skirmisher | -8/Materials Resources | -11 -10 -10 -9 -9 -9 -8 -8 ----------- Run | Yrd Mat Min Mat Min Exi Min Mat Matter Collected 739 | 268 45 71 272 . . 55 28 Remotely . | . . . . . . . . Salvage Created 1778 | 101 162 88 863 . . 258 306 Parts 114 | 4 17 9 48 . . 17 19 Haulers Intercepted 2 | . . . 2 . . . . Recyclers Shooed 2 | . 1 . . . . 1 . Parts Field Recycled . | . . . . . . . . Retrieved Matter . | . . . . . . . . Parts Self-Destructed . | . . . . . . . . Prevented . | . . . . . . . . Kills | -11 -10 -10 -9 -9 -9 -8 -8 ------- Run | Yrd Mat Min Mat Min Exi Min Mat Combat Hostiles Destroyed 45 | . 6 6 18 . . 6 9 Guns 35 | . 6 6 12 . . 4 7 Cannons 10 | . . . 6 . . 2 2 Classes Destroyed 11 | 2 3 . 5 . . 1 . Worker 4 | . . . 1 . . 3 . Builder 1 | . 1 . . . . . . Tunneler 2 | 1 . . 1 . . . . Hauler 2 | . . . 2 . . . . Recycler 4 | 1 1 . 1 . . . 1 Operator 1 | . 1 . . . . . . Watcher 1 | . . . 1 . . . . Swarmer 28 | . 6 6 7 . . 3 6 Grunt 10 | . . . 5 . . 2 3 Sentry 6 | . . . 6 . . . . Hunter 1 | . . . . . . 1 . Best Kill Streak 8 | 2 4 5 7 . . 3 8 Combat Bots Only 8 | . 3 3 6 . . 3 8 Max Kills in Single Turn 2 | 1 2 2 2 . . 1 1 Gunslinging 1 | . 1 1 . . . . . Exploded . | . . . . . . . . Melee . | . . . . . . . . Uniques/NPCs Destroyed . | . . . . . . . . Combat | -11 -10 -10 -9 -9 -9 -8 -8 -------- Run | Yrd Mat Min Mat Min Exi Min Mat Hostile Shots Fired 324 | . 54 56 74 . . 20 120 Missed 97 | . 15 18 18 . . 6 40 Damage Taken 2350 | . 310 298 597 . . 207 938 Core 398 | . 71 99 75 . . 65 88 Absorbed by Shields . | . . . . . . . . Core Remaining (%) 65 | 100 . 32 . . . 65 . Volleys Fired 146 | 4 32 19 43 . . 21 27 Largest 3 | 2 2 2 3 . . 3 3 Hottest 200 | 40 40 40 180 . . 193 200 Shots Fired 366 | 8 64 36 125 . . 63 70 Gun 288 | 8 64 36 94 . . 42 44 Cannon 78 | . . . 31 . . 21 26 Launcher . | . . . . . . . . Special . | . . . . . . . . Kinetic 141 | 8 64 36 33 . . . . Thermal 225 | . . . 92 . . 63 70 Explosive . | . . . . . . . . Electromagnetic . | . . . . . . . . Robot Hit Streak 9 | 7 8 4 8 . . 8 9 Robot Miss Streak 10 | . 10 3 3 . . 4 5 Penetration Max . | . . . . . . . . Secondary Targets 4 | . 3 1 . . . . . Max Gunslinging Chain 1 | . 1 1 . . . . . Shots Hit Robots 185 | 7 30 18 67 . . 29 34 Core Hits 96 | 4 16 10 35 . . 14 17 Critical Kills 1 | . . . 1 . . . . Critical Parts Destroyed . | . . . . . . . . Critical Strikes 14 | . . . 7 . . 4 3 Burn 13 | . . . 6 . . 4 3 Destroy 1 | . . . 1 . . . . Melee Attacks . | . . . . . . . . Impact . | . . . . . . . . Slashing . | . . . . . . . . Piercing . | . . . . . . . . Sneak Attacks . | . . . . . . . . Combat Hostiles . | . . . . . . . . Follow-up Attacks . | . . . . . . . . Damage Inflicted 2981 | 50 258 149 1094 . . 557 873 Guns 2048 | 50 258 149 762 . . 382 447 Cannons 919 | . . . 330 . . 163 426 Explosions . | . . . . . . . . Melee . | . . . . . . . . Ramming 14 | . . . 2 . . 12 . Kinetic 610 | 50 258 149 153 . . . . Thermal 2357 | . . . 939 . . 545 873 Explosive . | . . . . . . . . Electromagnetic . | . . . . . . . . Impact . | . . . . . . . . Slashing . | . . . . . . . . Piercing . | . . . . . . . . Highest Corruption . | . . . . . . . . Average Corruption . | . . . . . . . . Corruption Purged . | . . . . . . . . Corruption Blocked . | . . . . . . . . Overload Shots . | . . . . . . . . Overflow Damage 2 | . . . 2 . . . . Projectiles 2 | . . . 2 . . . . Explosions . | . . . . . . . . Melee . | . . . . . . . . Knockbacks . | . . . . . . . . Impact . | . . . . . . . . Kinetic . | . . . . . . . . Secondary . | . . . . . . . . Self-Inflicted Damage . | . . . . . . . . Shots . | . . . . . . . . Rammed . | . . . . . . . . Targets Rammed 4 | . . . 1 . . 3 . Kicked 4 | . . . 1 . . 3 . Crushed . | . . . . . . . . Highest Temperature 293 | . 8 8 168 . . 293 60 Average Temperature 52 | . 4 4 62 . . 83 16 Received Heat Transfer 534 | . . . 156 . . 45 333 Siege Activations . | . . . . . . . . Robots Corrupted . | . . . . . . . . Combat Hostiles . | . . . . . . . . Parts Fried . | . . . . . . . . Impact Corruptions . | . . . . . . . . Robots Melted . | . . . . . . . . Combat Hostiles . | . . . . . . . . Parts Melted 15 | . . . 10 . . 1 4 Heat Transferred 5661 | . . . 2442 . . 1406 1813 Parts Sabotaged . | . . . . . . . . Parts Stolen . | . . . . . . . . Parts Stripped . | . . . . . . . . Power Chain Reactions . | . . . . . . . . Alert | -11 -10 -10 -9 -9 -9 -8 -8 ------- Run | Yrd Mat Min Mat Min Exi Min Mat Peak Influence 403 | 10 156 150 403 156 . 155 233 Initial 156 | . 6 60 58 156 . . 1 Average 98 | 4 88 125 189 156 . 36 75 Maximum Alert Level 2 | . . . 2 . . . 1 Low Security (%) 83 | 100 100 100 51 100 . 100 81 Level 1 15 | . . . 44 . . . 18 Level 2 1 | . . . 3 . . . . Level 3 . | . . . . . . . . Level 4 . | . . . . . . . . Level 5 . | . . . . . . . . High Security . | . . . . . . . . Max Security . | . . . . . . . . Squads Dispatched 1 | . . . . . . . 1 Investigation . | . . . . . . . . Extermination . | . . . . . . . . Reinforcement 1 | . . . . . . . 1 Assault . | . . . . . . . . Garrison . | . . . . . . . . Intercept . | . . . . . . . . Searches Triggered . | . . . . . . . . Construction Impeded 1 | . . . . . . . 1 Haulers Reinforced . | . . . . . . . . Active Scanning Responses . | . . . . . . . . Cargo Convoy Interrupts . | . . . . . . . . Stealth | -11 -10 -10 -9 -9 -9 -8 -8 --------- Run | Yrd Mat Min Mat Min Exi Min Mat Distress Signals 5 | . 2 . 1 . . . 2 Communications Jammed . | . . . . . . . . Distress Signals . | . . . . . . . . Times Spotted 63 | . 10 6 19 . . 8 20 Peak Tracking Total 10 | . 5 3 4 . . 3 10 Tactical Retreats 3 | . . . . . . 2 1 Traps | -11 -10 -10 -9 -9 -9 -8 -8 ------- Run | Yrd Mat Min Mat Min Exi Min Mat Traps Triggered . | . . . . . . . . Indirectly . | . . . . . . . . Trap Hack Attempts . | . . . . . . . . Triggered . | . . . . . . . . Disarmed . | . . . . . . . . Reprogrammed . | . . . . . . . . Reused . | . . . . . . . . Traps Extracted . | . . . . . . . . Installed . | . . . . . . . . Triggered . | . . . . . . . . Machines | -11 -10 -10 -9 -9 -9 -8 -8 ---------- Run | Yrd Mat Min Mat Min Exi Min Mat Machines Disabled 2 | . . . 2 . . . . Max in Single Turn 1 | . . . 1 . . . . Machines Repaired . | . . . . . . . . Machines Dismantled . | . . . . . . . . Machines Sabotaged . | . . . . . . . . Overloaded Fab Kills . | . . . . . . . . Hacking | -11 -10 -10 -9 -9 -9 -8 -8 --------- Run | Yrd Mat Min Mat Min Exi Min Mat Machines Accessed 3 | . 1 . 2 . . . . Terminals 3 | . 1 . 2 . . . . Fabricators . | . . . . . . . . Repair Stations . | . . . . . . . . Recycling Units . | . . . . . . . . Scanalyzers . | . . . . . . . . Garrison Access . | . . . . . . . . Total Hacks 6 | . 2 . 4 . . . . Successful 2 | . 1 . 1 . . . . Failed 4 | . 1 . 3 . . . . Catastrophic 2 | . . . 2 . . . . Database Lockouts . | . . . . . . . . Manual 4 | . . . 3 . 1 . . Terminals 6 | . 2 . 4 . . . . Fabricators . | . . . . . . . . Repair Stations . | . . . . . . . . Recycling Units . | . . . . . . . . Scanalyzers . | . . . . . . . . Garrison Access . | . . . . . . . . Terminal Hacks 1 | . 1 . . . . . . Zone Layout 1 | . 1 . . . . . . Fabricator Hacks . | . . . . . . . . Repair Station Hacks . | . . . . . . . . Recycling Unit Hacks . | . . . . . . . . Scanalyzer . | . . . . . . . . Garrison Access Hacks . | . . . . . . . . Unauthorized Hacks 1 | . . . 1 . . . . Terminals 1 | . . . 1 . . . . Botnet 1 | . . . 1 . . . . Fabricators . | . . . . . . . . Repair Stations . | . . . . . . . . Recycling Units . | . . . . . . . . Scanalyzers . | . . . . . . . . Garrison Access . | . . . . . . . . Data Cores Recovered 1 | . 1 . . . . . . Used 1 | . 1 . . . . . . Hacking Detections 2 | . . . 2 . . . . Full Trace Events . | . . . . . . . . Feedback Events . | . . . . . . . . Feedback Blocked . | . . . . . . . . Robot Schematics Acquired . | . . . . . . . . Robots Built . | . . . . . . . . Authchips . | . . . . . . . . Time . | . . . . . . . . Total Robot Build Rating . | . . . . . . . . Part Schematics Acquired . | . . . . . . . . Parts Built . | . . . . . . . . Authchips . | . . . . . . . . Time . | . . . . . . . . Total Part Build Rating . | . . . . . . . . Parts Repaired . | . . . . . . . . Time . | . . . . . . . . Parts Recycled . | . . . . . . . . Recycled Matter . | . . . . . . . . Retrieved Matter . | . . . . . . . . Retrieved Components . | . . . . . . . . Parts Scanalyzed . | . . . . . . . . Part Schematics Acquired . | . . . . . . . . Parts Damaged . | . . . . . . . . Bothacking | -11 -10 -10 -9 -9 -9 -8 -8 ------------ Run | Yrd Mat Min Mat Min Exi Min Mat Used RIF Installer . | . . . . . . . . Robots Hacked . | . . . . . . . . Non-combat . | . . . . . . . . Combat . | . . . . . . . . Robot Hacks Applied . | . . . . . . . . Relay Couplers Released . | . . . . . . . . Fabnet Peak Effective % . | . . . . . . . . Robots Rewired . | . . . . . . . . Allies Hacked . | . . . . . . . . Hacks Repelled . | . . . . . . . . Allies | -11 -10 -10 -9 -9 -9 -8 -8 -------- Run | Yrd Mat Min Mat Min Exi Min Mat Total Allies . | . . . . . . . . Largest Group . | . . . . . . . . Highest-Rated Group . | . . . . . . . . Highest-Rated Ally . | . . . . . . . . Total Orders . | . . . . . . . . Ally Attacks . | . . . . . . . . Total Damage . | . . . . . . . . Kills . | . . . . . . . . Allies Corrupted . | . . . . . . . . Allies Melted . | . . . . . . . . Intel | -11 -10 -10 -9 -9 -9 -8 -8 ------- Run | Yrd Mat Min Mat Min Exi Min Mat Robot Analysis Total . | . . . . . . . . Derelict Logs Recovered 1 | . . 1 . . . . . Drone Launches . | . . . . . . . . Drone Recoveries . | . . . . . . . . Exploration | -11 -10 -10 -9 -9 -9 -8 -8 ------------- Run | Yrd Mat Min Mat Min Exi Min Mat Turns Passed 2559 | 77 163 100 648 108 332 872 259 Spaces Moved 1581 | 47 92 102 365 91 273 501 110 Core 7 | 3 . 4 . . . . . Treads . | . . . . . . . . Legs 1283 | 44 48 . 216 91 273 501 110 Wheels . | . . . . . . . . Hover . | . . . . . . . . Flight 291 | . 44 98 149 . . . . Fastest Speed 34 | 50 37 37 34 120 120 120 123 Average Speed 114 | 115 80 37 129 120 120 120 123 Slowest Speed 260 | 120 120 50 260 120 120 123 123 Overloaded Moves . | . . . . . . . . Propulsion Burnouts . | . . . . . . . . Robots Hopped . | . . . . . . . . Cave-ins Triggered . | . . . . . . . . Exploration Rate (%) 34 | 4 23 38 37 20 67 74 15 Regions Visited 7 Branch Regions 4 Pre-discovered Areas . | . . . . . . . . Known Exits Taken . | . . . . . . . . Unknown Exits Taken 7 | 1 1 1 1 1 1 1 . Scrap Searched 2 | . . . . 1 . 1 . Spaces Dug . | . . . . . . . . Terrain Destroyed 2 | . . . . . . . 2 Melee . | . . . . . . . . Projectile 2 | . . . . . . . 2 AOE . | . . . . . . . . Terrain Rammed . | . . . . . . . . Walls Destroyed . | . . . . . . . . Machines Disabled . | . . . . . . . . Actions | -11 -10 -10 -9 -9 -9 -8 -8 --------- Run | Yrd Mat Min Mat Min Exi Min Mat Total 2042 | 63 128 132 456 90 277 720 176 Wait 212 | . . . . . . 188 24 Move 1574 | 46 91 101 364 90 272 500 110 Hop . | . . . . . . . . Pick Up 32 | 7 2 6 10 . 1 1 5 Fast Attach 15 | . . 1 10 . 1 3 . Attach 19 | 6 1 3 4 . . . 5 Detach . | . . . . . . . . Swap 14 | . 2 2 6 . 1 1 2 Drop 26 | . . . 18 . 2 3 3 Fire 146 | 4 32 19 43 . . 21 27 Melee . | . . . . . . . . Ram . | . . . . . . . . Kick 4 | . . . 1 . . 3 . Crush . | . . . . . . . . Escape Stasis . | . . . . . . . . Rewire . | . . . . . . . . Trap . | . . . . . . . . Miscellaneous . | . . . . . . . . Route ------- -11/Scrapyard -10/Materials -10/Mines -9/Materials (discovered 3 exits: [*Mat] / [*Min x2]) -9/Mines -9/Exiles -8/Mines -8/Materials History --------- Turn | Location | Event 7 | -11/Scrapyard | Discovered new exit (range 15) 78 | -11/Scrapyard | Entered Materials 217 | -10/Materials | Discovered new exit (range 15) 241 | -10/Materials | Entered Mines 284 | -10/Mines | Found a hidden stash of uninstalled traps 289 | -10/Mines | Learned Materials stockpile data 294 | -10/Mines | Discovered new exit (range 8) 306 | -10/Mines | Core integrity fell below 50% 341 | -10/Mines | Entered Materials 341 | -9/Materials | Evolved 2 slots: Propulsion x1, Weapon x1 382 | -9/Materials | Lost 6 parts (1p3n1u1w) 639 | -9/Materials | Build established: Scavenger-Gunner 721 | -9/Materials | Discovered new exit (range 15) 906 | -9/Materials | Discovered new exit (range 9) 976 | -9/Materials | Discovered new exit (range 9) 989 | -9/Materials | Entered Mines 1020 | -9/Mines | Build established: Gunner 1037 | -9/Mines | Assembled infested the area 1093 | -9/Mines | Deemed a non-threat by the Exiles lab entrance 1093 | -9/Mines | Discovered new exit (range 5) 1097 | -9/Mines | Entered Exiles 1125 | -9/Exiles | Met 8R-AWN 1148 | -9/Exiles | Met EX-HEX 1184 | -9/Exiles | Met EX-BIN 1199 | -9/Exiles | Aligned with FarCom system 1201 | -9/Exiles | Given EX-Vault access code 1228 | -9/Exiles | Opened EX-Vault 1236 | -9/Exiles | Found Prototype Processor 1236 | -9/Exiles | Identified Modified TNC 1273 | -9/Exiles | Warned to stay clear of 0b10 Research branches 1309 | -9/Exiles | Met EX-DEC 1417 | -9/Exiles | Discovered new exit (range 12) 1429 | -9/Exiles | Left Exiles lab with Modified TNC 1429 | -9/Exiles | Entered Mines 1533 | -8/Mines | Build established: Skirmisher 2291 | -8/Mines | Discovered new exit (range 9) 2301 | -8/Mines | Entered Materials 2301 | -8/Materials | Evolved 2 slots: Utility x2 2521 | -8/Materials | Destroyed 8 combat bots 2560 | -8/Materials | Self-destructed Last Messages --------------- S-10 Pest destroyed. K-01 Serf collects debris. K-01 Serf cleans the Fusion Modulator. W-25 Informer sends out distress signal. K-01 Serf collects debris. R-06 Scavenger collects Lgt. Assault Rifle. K-01 Serf collects debris. Hvy. Laser destroyed. G-50 Soldier destroyed. R-06 Scavenger collects Lgt. Assault Rifle. G-47 Trooper suffers critical hit (Burn). R-06 Scavenger collects Flight Unit. Imp. Medium Laser destroyed. G-47 Trooper heat spikes uncontrollably. G-47 Trooper overheating. R-06 Scavenger destroyed. G-47 Trooper heat damages Imp. Heat Sink, Lgt. Nuclear Core, Aluminum Leg. Hvy. Ion Engine destroyed. G-47 Trooper overheating. Map ----- +----------------------------------------------------+ | | | ?????????????????????????????????????????????????? | | ?????????????????????????????????????????????????? | | ?????????????????????????????????????????????????? | | ?????????????????????????????????????????????????? | | ?????????????????????????????????????????????????? | | ?????????????????????????????????????????????????? | | ?????????????????????????????????????????????????? | | ??????????????###########????????????????????????? | | ??????????????# """ """ #????????????????????????? | | ??????????????# """ """ #????????????????????????? | | ??????????????# """ """ #????????????????????????? | | ??????????????# #????????????????????????? | | ?##+#####?##### #????????????????????????? | | ? ! ?# #! #????????????????????????? | | ?? # # * #????????????????????????? | | ???"" """ # # #????????????????????????? | | ???"" """ + ###+###########????????????????????? | | ???"" """ # #????????????????????? | | ?? # #????????????????????? | | ? ! ?+ #????????????????????? | | ? ?#######+##### ########?????????????? | | ?#######?????# ! # u # #?????????????? | | ?????????????# = # # #?????????????? | | ?????????????# # + """ ]#?????????????? | | ?????????????# """# @ # """ #?????????????? | | ?????????????# """# # """ +?????????????? | | ?????????????# """# # #?????????????? | | ?????????????#! """# ########?????????????? | | ?????????????# """# #????????????????????? | | ?????????????# #[! #?????????a??????????? | | ?????????????##########%= #???????????????? ???? | | ??????????????????????#*! #??????????????? ???? | | ??????????????????????#* #????????????? #??? | | ??????????????????????# g #???????????w #??? | | ??????????????????????#g g #??????????? #??? | | ??????????????????????# g g#????????? #??? | | ??????????????????????# % #???????? #??? | | ??????????????????????# ######## #??? | | ??????????????????????# *% +??? | | ??????????????????????# [ #??? | | ??????????????????????# #??? | | ?????????????????????## #??? | | ?????????????????????## """ """ ?? | | ??????????????????????#= """ """ ?? | | ??????????????????????#%=*== """ """ ??? | | ??????????????????????#=%[== ??? | | ??????????????????????# ==== a ??? | | ??????????????????????# % % """ """ ??? ?????? | | ??????????????????????# [ == """ """ ?????????? | +----------------------------------------------------+ Best States ------------- Heat Dissipation 75 Energy Generation 14 Energy Capacity 280 Matter Stores 300 Matter Capacity 300 Sight Range 16 Terrain Scan Density 10 Armor Coverage 150 Evasion (%) 62 Item Schematics ----------------- None Robot Schematics ------------------ None Fabricated ------------ Nothing Alien Tech Used ----------------- None Achievements -------------- None Challenges ------------ None Game ------ Seed ContainmentSurveybotWheel Manual? 0 Play Time 00:31:35 Cumulative 25.6 hours Start 2025.03.02 @ 08:08:14 End 2025.03.02 @ 16:11:30 Sessions 5 Manual Loads 0 Difficulty Rogue Special Mode None Game No. 53 Rogue 53 Adventurer 0 Explorer 0 Win Type - Total 0 Types 0/0/0/0/0/0/0/0/0 Lore% 15 Gallery% 30 Achievement% 24 Wizard Run 0 Options --------- Layout 2 ASCII 0 Keyboard 0 Movement Mouse Keybinds 0 Fullscreen 1 Font 24/Smallcaps Map View 50x49 Zoom Use 0% Tactical HUD 0 Map Filters NONE Filters NONE Steam 1 RUN: 1c7240a9-153d-4426-92a2-482da7796b82